fUST/lending_fUST_20240915
["ID","MTS","AMOUNT","RATE_DAILY","PERIOD"]
[338200073,1726384244669,-151.0,0.00018711,2]
[338200075,1726384244679,-151.0,0.00018711,2]
[338200077,1726384244689,-151.0,0.00018711,2]
[338200079,1726384244698,-151.0,0.00018711,2]
[338200081,1726384244707,-151.0,0.00018711,2]
[338200083,1726384244717,-151.0,0.00018711,2]
[338200086,1726384244728,-151.0,0.00018711,2]
[338200088,1726384244739,-1532.510166,0.00018711,2]
[338200090,1726384244751,-1532.510166,0.00018711,2]
[338200091,1726384244760,-1532.510166,0.00018711,2]
[338200093,1726384244770,-1532.510166,0.00018711,2]
[338200095,1726384244779,-1532.510166,0.00018711,2]
[338200097,1726384244788,-1532.510166,0.00018711,2]
[338200099,1726384244798,-151.0,0.00018711,2]
[338200101,1726384244808,-151.0,0.00018711,2]
[338200103,1726384244817,-151.0,0.00018711,2]
[338200105,1726384244828,-151.0,0.00018711,2]
[338200107,1726384244837,-151.0,0.00018711,2]
[338200109,1726384244847,-298.39886,0.00018711,2]
[338200111,1726384244856,-222.515901,0.00018712,2]
[338200113,1726384244866,-151.0,0.00018712,2]
[338200115,1726384244875,-151.0,0.00018712,2]
[338200117,1726384244885,-151.0,0.00018712,2]
[338200119,1726384244894,-1532.510166,0.00018712,2]
[338200121,1726384244904,-1532.510166,0.00018712,2]
[338200123,1726384244913,-1532.510166,0.00018712,2]
[338200125,1726384244923,-1532.510166,0.00018712,2]
[338200127,1726384244932,-1532.510166,0.00018712,2]
[338200129,1726384244942,-1532.510156,0.00018712,2]
[338200131,1726384244952,-6261.40631763,0.00018721,2]
[338200133,1726384244962,-199.678,0.00018726,2]
[338200135,1726384244972,-6261.40631763,0.00018732,2]
[338200136,1726384244982,-1627.94488801,0.00018734,2]
[338200139,1726384244991,-20000.0,0.00018744,2]
[338200141,1726384245001,-157.68880349,0.00018773,2]
[338200143,1726384245010,-204.19652057,0.00018773,2]
[338200144,1726384245019,-500.57981532,0.00018773,2]
[338200147,1726384245029,-253.85056683,0.00018773,2]
[338200149,1726384245039,-187.35450631,0.00018773,2]
[338200150,1726384245048,-500.0,0.00018773,2]
[338200152,1726384245059,-200.00581408,0.00018773,2]
[338200154,1726384245069,-500.0,0.00018773,2]
[338200156,1726384245078,-500.0,0.00018773,2]
[338200158,1726384245087,-500.36296425,0.00018773,2]
[338200160,1726384245097,-500.0,0.00018773,2]
[338200162,1726384245107,-500.0,0.00018773,2]
[338200164,1726384245117,-500.64703563,0.00018773,2]
[338200166,1726384245127,-500.0,0.00018773,2]
[338200168,1726384245140,-500.0,0.00018773,2]
[338200170,1726384245151,-404.62845825,0.00018773,2]
[338200172,1726384245160,-534.39480024,0.00018773,2]
[338200174,1726384245171,-500.0,0.00018773,2]
[338200176,1726384245180,-1627.94488801,0.0001879,2]
[338200177,1726384245189,-6387.84884227,0.00018799,5]
[338200179,1726384245199,-12057.18785619,0.00018799,2]
[338200181,1726384245210,-150.01,0.00018799,2]
[338200183,1726384245220,-3051.60505131,0.000188,2]
[338200185,1726384245230,-14048.61516091,0.000188,2]
[338200187,1726384245240,-3364.82629215,0.000188,2]
[338200189,1726384245249,-3364.82629214,0.000188,2]
[338200191,1726384245259,-3364.82629214,0.000188,2]
[338200193,1726384245268,-3364.82629214,0.000188,2]
[338200195,1726384245278,-1412.38985707,0.000188,2]
[338200197,1726384245287,-1412.38985707,0.000188,2]
[338200198,1726384245297,-1412.38985707,0.000188,2]
[338200200,1726384245306,-1412.38985707,0.000188,2]
[338200202,1726384245316,-616.0,0.000188,2]
[338200204,1726384245325,-150.0,0.00018836,2]
[338200206,1726384245334,-150.0,0.00018863,2]
[338200208,1726384245344,-150.0,0.00018891,2]
[338200210,1726384245354,-14048.61516091,0.000189,2]
[338200212,1726384245363,-3325.15461466,0.00018904,2]
[338200214,1726384245373,-150.0,0.00018918,2]
[338200216,1726384245382,-218.87527907,0.00018946,2]
[338200218,1726384245392,-2900.0,0.0001895,2]
[338200220,1726384245401,-1627.94488801,0.00018969,3]
[338200221,1726384245412,-500.0,0.00018979,2]
[338200223,1726384245422,-500.0,0.00018979,2]
[338200225,1726384245431,-200.0,0.00019,2]
[338200227,1726384245440,-153.0,0.00019096,2]
[338200229,1726384245451,-153.0,0.00019096,2]
[338200231,1726384245461,-1000.0,0.00019178,2]
[338200233,1726384245471,-151.0,0.00019178,2]
[338200235,1726384245480,-237.549498,0.00019178,2]
[338200238,1726384245491,-175.36348,0.00019178,2]
[338200239,1726384245500,-163.336442,0.00019178,2]
[338200241,1726384245510,-153.833236,0.00019178,2]
[338200243,1726384245519,-169.052,0.00019254,2]
[338200245,1726384245528,-241.775,0.00019254,2]
[338200247,1726384245538,-150.147,0.00019254,2]
[338200249,1726384245548,-213.882,0.00019254,2]
[338200251,1726384245557,-150.0,0.00019254,2]
[338200253,1726384245567,-1622.10919562,0.000195,2]
[338200255,1726384245576,-1087.94888017,0.000195,2]
[338200257,1726384245586,-150.112235,0.000195,2]
[338200259,1726384245596,-150.112233,0.000196,2]
[338200261,1726384245605,-190.0,0.00019617,2]
[338200263,1726384245615,-153.0,0.00019699,2]
[338200265,1726384245624,-153.0,0.00019699,2]
[338200267,1726384245633,-153.0,0.00019699,2]
[338200269,1726384245643,-153.0,0.00019699,2]
[338200271,1726384245652,-153.0,0.00019699,2]
[338200273,1726384245662,-150.112233,0.000197,2]
[338200275,1726384245672,-1000.0,0.000198,2]
[338200277,1726384245681,-1785.0,0.00019822,2]
[338200279,1726384245691,-150.112233,0.000199,2]
[338200281,1726384245701,-3478.905228,0.00019911,3]
[338200283,1726384245710,-210.59069177,0.00019973,2]
[338200285,1726384245719,-500.0,0.00019973,2]
[338200287,1726384245731,-500.0,0.00019973,2]
[338200289,1726384245740,-500.0,0.00019973,2]
[338200291,1726384245750,-506.5865209,0.00019973,2]
[338200293,1726384245759,-151.42916185,0.00019973,2]
[338200295,1726384245769,-500.0,0.00019973,2]
[338200297,1726384245779,-150.0,0.00019973,2]
[338200299,1726384245789,-4883.83466403,0.0001999,3]
[338200301,1726384245799,-139926.69307272,0.0002,2]
[338200303,1726384245811,-6001.41181434,0.0002,2]
[338200305,1726384245820,-5088.89399994,0.0002,2]
[338200307,1726384245830,-1404.3135168,0.0002,2]
[338200309,1726384245840,-200.0,0.0002,2]
[338200311,1726384245849,-1000.0,0.0002,2]
[338200313,1726384245859,-499.999999,0.0002,30]
[338200315,1726384245868,-400.0,0.0002,2]
[338200317,1726384245877,-1785.0,0.00020038,2]
[338200319,1726384245887,-660.17316589,0.00020042,2]
[338200321,1726384245897,-787.56867476,0.00020042,2]
[338200323,1726384245907,-1000.0,0.00020042,2]
[338200325,1726384245916,-1107.99218797,0.00020042,2]
[338200327,1726384245925,-455.83423841,0.00020042,2]
[338200329,1726384245935,-1000.0,0.00020042,2]
[338200331,1726384245944,-500.83333874,0.00020042,2]
[338200333,1726384245954,-663.31618977,0.00020042,2]
[338200335,1726384245963,-537.90236228,0.00020042,2]
[338200337,1726384245973,-509.68927833,0.00020042,2]
[338200340,1726384245983,-503.32549673,0.00020042,2]
[338200342,1726384245993,-1000.0,0.00020142,2]
[338200344,1726384246002,-1000.0,0.00020142,2]
[338200346,1726384246012,-1000.0,0.00020142,2]
[338200348,1726384246022,-1000.0,0.00020142,2]
[338200350,1726384246035,-1000.0,0.00020142,2]
[338200352,1726384246044,-172.3254261,0.00020142,2]
[338200354,1726384246055,-500.76041184,0.00020142,2]
[338200356,1726384246065,-500.95476985,0.00020142,2]
[338200358,1726384246074,-1627.94488801,0.00020243,3]
[338200360,1726384246084,-1785.0,0.00020253,2]
[338200362,1726384246094,-420.0,0.00020261,2]
[338200364,1726384246103,-1000.0,0.00020341,2]
[338200366,1726384246113,-5037.4104041,0.00020414,2]
[338200368,1726384246123,-5000.0,0.00020414,2]
[338200370,1726384246136,-5000.0,0.00020414,2]
[338200372,1726384246146,-5000.0,0.00020414,2]
[338200374,1726384246156,-5000.0,0.00020414,2]
[338200376,1726384246165,-420.0,0.00020438,2]
[338200378,1726384246175,-1785.0,0.00020468,2]
[338200380,1726384246184,-500.0,0.0002051,10]
[338200382,1726384246194,-250.24501494,0.00020521,2]
[338200384,1726384246204,-1000.0,0.00020547,2]
[338200386,1726384246214,-500.0,0.00020547,2]
[338200387,1726384246225,-1785.0,0.00020684,2]
[338200389,1726384246235,-155.0,0.0002075,3]
[338200391,1726384246254,-853.36859174,0.00020754,3]
[338200393,1726384246263,-358.33672388,0.00020754,3]
[338200395,1726384246273,-600.0,0.00020801,3]
[338200397,1726384246282,-600.0,0.00020802,3]
[338200399,1726384246291,-1785.0,0.00020899,2]
[338200401,1726384246301,-2785.205185,0.00020916,2]
[338200403,1726384246310,-4189.023502,0.00020916,2]
[338200405,1726384246320,-1627.94488801,0.0002099,3]
[338200407,1726384246330,-500.0,0.00021,2]
[338200409,1726384246339,-200.0,0.00021,2]
[338200411,1726384246349,-1000.0,0.00021,120]
[338200413,1726384246358,-3000.0,0.00021,2]
[338200415,1726384246368,-3000.0,0.0002101,2]
[338200417,1726384246378,-3000.0,0.0002102,2]
[338200419,1726384246387,-3000.0,0.0002103,2]
[338200421,1726384246397,-3000.0,0.0002104,2]
[338200423,1726384246406,-3000.0,0.0002105,2]
[338200425,1726384246415,-3000.0,0.0002106,2]
[338200427,1726384246425,-3000.0,0.0002107,2]
[338200429,1726384246435,-3000.0,0.0002108,2]
[338200431,1726384246444,-3000.0,0.0002109,2]
[338200433,1726384246453,-3000.0,0.000211,2]
[338200434,1726384246462,-1060.3581686,0.0002111,2]
[338200473,1726384246845,-1939.6418314,0.0002111,2]
[338200476,1726384246857,-1785.0,0.00021114,2]
[338200478,1726384246867,-3000.0,0.0002112,2]
[338200480,1726384246878,-3000.0,0.0002113,2]
[338200482,1726384246889,-3000.0,0.0002114,2]
[338200484,1726384246899,-3000.0,0.0002115,2]
[338200500,1726384247086,-3000.0,0.0002116,2]
[338200501,1726384247096,-3000.0,0.0002117,2]
[338200502,1726384247106,-2785.205185,0.00021177,2]
[338200503,1726384247115,-4189.023502,0.00021177,2]
[338200504,1726384247125,-3000.0,0.0002118,2]
[338200505,1726384247138,-3000.0,0.0002119,2]
[338200506,1726384247148,-3000.0,0.000212,2]
[338200507,1726384247157,-2283.44893989,0.0002121,2]
[338200545,1726384247618,-500.0,0.0001868,2]
[338200547,1726384247627,-850.986661,0.00018681,2]
[338200549,1726384247636,-850.986661,0.00018681,2]
[338200551,1726384247647,-850.986661,0.00018681,2]
[338200553,1726384247658,-850.986661,0.00018681,2]
[338200555,1726384247668,-850.986661,0.00018681,2]
[338200557,1726384247677,-850.986661,0.00018681,2]
[338200559,1726384247687,-850.986661,0.00018682,2]
[338200561,1726384247697,-716.55106011,0.0002121,2]
[338200563,1726384247707,-3000.0,0.0002122,2]
[338200565,1726384247717,-3000.0,0.0002123,2]
[338200567,1726384247727,-3000.0,0.0002124,2]
[338200569,1726384247738,-3000.0,0.0002125,2]
[338200572,1726384247748,-3000.0,0.0002126,2]
[338200574,1726384247758,-3000.0,0.0002127,2]
[338200576,1726384247767,-3000.0,0.0002128,2]
[338200578,1726384247777,-3000.0,0.0002129,2]
[338200580,1726384247787,-3000.0,0.000213,2]
[338200582,1726384247797,-3000.0,0.0002131,2]
[338200584,1726384247806,-3000.0,0.0002132,2]
[338200586,1726384247816,-3000.0,0.0002133,2]
[338200588,1726384247825,-1785.0,0.0002133,2]
[338200590,1726384247836,-3000.0,0.0002134,2]
[338200592,1726384247846,-552.32655305,0.00021342,2]
[338200594,1726384247857,-538.50299644,0.00021342,2]
[338200652,1726384248411,-153.0,0.000185,2]
[338200654,1726384248422,-151.0,0.00018672,2]
[338200656,1726384248432,-500.0,0.0001868,2]
[338200658,1726384248441,-500.0,0.0001868,2]
[338200660,1726384248450,-500.0,0.0001868,2]
[338200662,1726384248460,-500.0,0.0001868,2]
[338200664,1726384248470,-495.0,0.0001868,2]
[338200666,1726384248479,-850.986661,0.00018681,2]
[338200668,1726384248489,-850.986661,0.00018681,2]
[338200670,1726384248499,-850.986661,0.00018681,2]
[338200672,1726384248508,-635.58737198,0.00018682,2]
[338200674,1726384248520,-215.39928902,0.00018682,2]
[338200676,1726384248531,-850.986661,0.00018682,2]
[338200678,1726384248542,-667.42149101,0.0001869,2]
[338204630,1726385438380,-300.0,0.00016499,2]
[338204631,1726385438390,-300.0,0.00016499,2]
[338204632,1726385438399,-24900.0,0.000165,2]
[338204633,1726385438409,-158.749082,0.00016577,2]
[338204634,1726385438418,-166.974824,0.00016712,2]
[338204635,1726385438427,-158.749082,0.0001675,2]
[338204636,1726385438436,-158.749082,0.00016922,2]
[338204637,1726385438446,-158.749082,0.00017095,2]
[338204638,1726385438455,-1512.8871259,0.00017118,2]
[338204639,1726385438464,-20827.8964576,0.00017127,2]
[338204640,1726385438473,-745.1314708,0.00017218,2]
[338204641,1726385438483,-1808.12875843,0.00017218,2]
[338204642,1726385438493,-158.749082,0.00017268,2]
[338204643,1726385438503,-1297.6079575,0.0001743,2]
[338204644,1726385438513,-158.749082,0.00017441,2]
[338204645,1726385438523,-420.0,0.0001803,2]
[338204646,1726385438533,-420.0,0.00018149,2]
[338204647,1726385438545,-199.67930112,0.00018865,2]
[338204648,1726385438556,-500.0,0.00018979,2]
[338204649,1726385438567,-1000.0,0.00019178,2]
[338204650,1726385438576,-524.0,0.00019197,2]
[338204651,1726385438587,-150.0,0.00019197,2]
[338204653,1726385438599,-214.0,0.000195,10]
[338204655,1726385438610,-587.0,0.00019702,2]
[338204657,1726385438620,-892.5,0.00019781,2]
[338204658,1726385438629,-156.8751819,0.00019926,2]
[338204659,1726385438639,-587.0,0.00019964,2]
[338204660,1726385438649,-892.5,0.0002,2]
[338204661,1726385438658,-892.5,0.00020219,2]
[338204662,1726385438667,-892.5,0.00020438,2]
[338204663,1726385438677,-1000.0,0.00020547,2]
[338204664,1726385438687,-892.5,0.00020657,2]
[338204665,1726385438697,-155.0,0.0002075,3]
[338204666,1726385438706,-892.5,0.00020876,2]
[338204667,1726385438715,-557.041037,0.00020916,2]
[338204668,1726385438725,-837.804701,0.00020916,2]
[338204669,1726385438734,-3000.0,0.00021,2]
[338204670,1726385438743,-3000.0,0.0002101,2]
[338204671,1726385438752,-3000.0,0.0002102,2]
[338204672,1726385438763,-3000.0,0.0002103,2]
[338204673,1726385438774,-3000.0,0.0002104,2]
[338204674,1726385438785,-3000.0,0.0002105,2]
[338204675,1726385438796,-3000.0,0.0002106,2]
[338204676,1726385438807,-3000.0,0.0002107,2]
[338204677,1726385438818,-18031.0343455,0.0002107,3]
[338204678,1726385438829,-500.0,0.00021073,2]
[338204679,1726385438839,-500.0,0.00021073,2]
[338204680,1726385438854,-3000.0,0.0002108,2]
[338204681,1726385438865,-3000.0,0.0002109,2]
[338204682,1726385438875,-892.5,0.00021095,2]
[338204683,1726385438885,-3000.0,0.000211,2]
[338204684,1726385438895,-3000.0,0.0002111,2]
[338204685,1726385438907,-3000.0,0.0002112,2]
[338204686,1726385438918,-3000.0,0.0002113,2]
[338204687,1726385438929,-3000.0,0.0002114,2]
[338204688,1726385438940,-3000.0,0.0002115,2]
[338204689,1726385438951,-3000.0,0.0002116,2]
[338204690,1726385438960,-3000.0,0.0002117,2]
[338204691,1726385438970,-557.041037,0.00021177,2]
[338204692,1726385438981,-837.804701,0.00021177,2]
[338204693,1726385438991,-3000.0,0.0002118,2]
[338204694,1726385439000,-3000.0,0.0002119,2]
[338204695,1726385439010,-3000.0,0.000212,2]
[338204696,1726385439020,-3000.0,0.0002121,2]
[338204697,1726385439030,-3000.0,0.0002122,2]
[338204698,1726385439040,-18031.0343455,0.0002122,3]
[338204699,1726385439050,-153.0,0.00021226,2]
[338204700,1726385439060,-3000.0,0.0002123,2]
[338204701,1726385439071,-3000.0,0.0002124,2]
[338204702,1726385439081,-3000.0,0.0002125,2]
[338204703,1726385439091,-3000.0,0.0002126,2]
[338204704,1726385439102,-3000.0,0.0002127,2]
[338204705,1726385439112,-3000.0,0.0002128,2]
[338204706,1726385439122,-3000.0,0.0002129,2]
[338204707,1726385439132,-3000.0,0.000213,2]
[338204708,1726385439142,-500.0,0.00021309,2]
[338204709,1726385439152,-3000.0,0.0002131,2]
[338204711,1726385439162,-892.5,0.00021315,2]
[338204713,1726385439173,-3000.0,0.0002132,2]
[338204715,1726385439184,-3000.0,0.0002133,2]
[338204717,1726385439194,-3000.0,0.0002134,2]
[338204719,1726385439204,-150.01,0.00021341,2]
[338204721,1726385439213,-1287.46269984,0.00021341,2]
[338204723,1726385439223,-500.0,0.00021342,2]
[338204726,1726385439235,-3000.0,0.0002135,2]
[338204728,1726385439246,-4037.556117,0.0002136,2]
[338204730,1726385439257,-18031.0343455,0.00021429,3]
[338204732,1726385439268,-2785.205185,0.00021439,2]
[338204734,1726385439280,-4189.023502,0.00021439,2]
[338204736,1726385439290,-557.041037,0.00021439,2]
[338204739,1726385439301,-837.804701,0.00021439,2]
[338204741,1726385439310,-823.0,0.0002153,2]
[338204743,1726385439321,-892.5,0.00021534,2]
[338204745,1726385439332,-2785.205185,0.000217,2]
[338204747,1726385439343,-4189.023502,0.000217,2]
[338204749,1726385439353,-557.041037,0.000217,2]
[338204751,1726385439363,-837.804701,0.000217,2]
[338204753,1726385439373,-892.5,0.00021753,2]
[338204756,1726385439382,-272.04,0.000218,2]
[338204758,1726385439394,-300.0,0.000218,9]
[338204760,1726385439404,-516.0,0.000219,2]
[338204762,1726385439414,-352.82872976,0.000219,4]
[338204764,1726385439424,-18031.0343455,0.000219,3]
[338204766,1726385439438,-281.841,0.00021903,2]
[338204769,1726385439448,-1000.0,0.00021917,2]
[338204771,1726385439458,-166.666666,0.00021918,2]
[338204773,1726385439469,-500.0,0.00021918,2]
[338204775,1726385439480,-500.0,0.00021918,2]
[338204777,1726385439491,-500.0,0.00021918,2]
[338204779,1726385439500,-500.0,0.00021918,2]
[338204782,1726385439511,-500.0,0.00021918,2]
[338204784,1726385439521,-155.12822842,0.00021918,2]
[338204786,1726385439530,-3264.037,0.0002193,2]
[338204788,1726385439539,-300.848,0.0002193,2]
[338204790,1726385439550,-18031.0343455,0.00021952,3]
[338204792,1726385439561,-823.0,0.0002196,2]
[338204794,1726385439572,-2785.205185,0.00021962,2]
[338204796,1726385439583,-4189.023502,0.00021962,2]
[338204799,1726385439594,-557.041037,0.00021962,2]
[338204801,1726385439606,-837.804701,0.00021962,2]
[338204803,1726385439616,-151.0,0.00021962,7]
[338204805,1726385439625,-151.0,0.00021962,7]
[338204807,1726385439636,-604.868921,0.00021962,7]
[338204809,1726385439647,-604.868921,0.00021962,7]
[338204811,1726385439656,-892.5,0.00021972,2]
[338204812,1726385439666,-500.0,0.00021973,2]
[338204814,1726385439675,-500.0,0.00021973,2]
[338204816,1726385439685,-500.0,0.00021973,2]
[338204818,1726385439694,-500.0,0.00021973,2]
[338204820,1726385439703,-151.0,0.0002198,7]
[338204822,1726385439712,-172.780982,0.0002198,7]
[338204823,1726385439722,-604.868921,0.0002198,7]
[338204825,1726385439732,-604.868921,0.0002198,7]
[338204827,1726385439742,-90155.1717274,0.0002198,3]
[338204828,1726385439751,-186.93825724,0.00021989,2]
[338204830,1726385439761,-341.3927727,0.00021989,2]
[338204832,1726385439770,-500.0,0.00021989,2]
[338204834,1726385439780,-205.37952011,0.00021989,2]
[338204836,1726385439790,-500.0,0.00021989,2]
[338204838,1726385439799,-245.85435144,0.00021989,2]
[338204839,1726385439809,-500.0,0.00021989,2]
[338204840,1726385439818,-500.0,0.00021989,2]
[338204841,1726385439828,-500.0,0.00021989,2]
[338204842,1726385439837,-500.0,0.00021989,2]
[338204843,1726385439846,-309.26888553,0.00021989,2]
[338204844,1726385439855,-500.0,0.00021989,2]
[338204845,1726385439864,-500.0,0.00021989,2]
[338204846,1726385439872,-500.0,0.00021989,2]
[338204847,1726385439882,-500.0,0.00021989,2]
[338204848,1726385439891,-500.0,0.00021989,2]
[338204849,1726385439900,-500.0,0.00021989,2]
[338204851,1726385439911,-300.0,0.00021989,2]
[338204853,1726385439922,-151.0,0.0002199,7]
[338204855,1726385439935,-151.0,0.0002199,7]
[338204857,1726385439944,-151.0,0.0002199,7]
[338204859,1726385439953,-36062.0686909,0.0002199,3]
[338204861,1726385439963,-57203.60528369,0.00022,2]
[338204906,1726385440374,-299.561731,0.00021972,7]
[338204908,1726385440385,-40182.75772729,0.00022,2]
[338204930,1726385440584,-77420.76137902,0.00022,2]
[338204932,1726385440595,-1012.87728864,0.00022,2]
[338204934,1726385440604,-289.60551592,0.00022,2]
[338204936,1726385440615,-476.11081444,0.00022,2]
[338204939,1726385440625,-200.0,0.00022,2]
[338204941,1726385440635,-151.0,0.00022,7]
[338204943,1726385440644,-151.0,0.00022,7]
[338204945,1726385440653,-604.868921,0.00022,7]
[338204946,1726385440663,-604.868921,0.00022,7]
[338204948,1726385440672,-155.0,0.0002205,6]
[338204951,1726385440683,-153.0,0.00022184,2]
[338204952,1726385440692,-153.0,0.00022184,2]
[338204955,1726385440702,-153.0,0.00022184,2]
[338204957,1726385440714,-153.0,0.00022184,2]
[338204959,1726385440724,-1000.0,0.00022191,2]
[338204961,1726385440735,-892.5,0.00022191,2]
[338204963,1726385440746,-524.0,0.00022197,2]
[338204966,1726385440758,-150.0,0.00022197,2]
[338204968,1726385440768,-150.0,0.00022254,2]
[338204970,1726385440779,-150.0,0.00022254,2]
[338204972,1726385440789,-1318.5089745,0.000223,2]
[338204974,1726385440799,-166.666666,0.00022431,2]
[338204976,1726385440812,-500.93456075,0.00022442,2]
[338204979,1726385440822,-1000.0,0.00022442,2]
[338204981,1726385440834,-153.1622282,0.00022463,2]
[338204983,1726385440843,-154.2044541,0.00022463,2]
[338204985,1726385440857,-306.0,0.00022463,2]
[338204987,1726385440867,-153.0,0.00022463,2]
[338204989,1726385440877,-1000.0,0.00022465,2]
[338204991,1726385440886,-1000.0,0.00022679,2]
[338204993,1726385440898,-1064.35898235,0.00022739,2]
[338204995,1726385440908,-153.0,0.0002279,2]
[338204997,1726385440918,-300.0460571,0.0002294,2]
[338204999,1726385440929,-166.666666,0.00022944,2]
[338205001,1726385440940,-240.34857212,0.00023,2]
[338205004,1726385440950,-200.0,0.00023,2]
[338205006,1726385440959,-500.0,0.00023,8]
[338205008,1726385440969,-500.0,0.00023,8]
[338205010,1726385440979,-500.0,0.00023,8]
[338205012,1726385440988,-500.0,0.00023,8]
[338205014,1726385440998,-500.0,0.00023,8]
[338205016,1726385441007,-3411.0,0.00023,2]
[338205018,1726385441017,-211.0,0.00023,2]
[338205020,1726385441026,-200.0,0.00023,2]
[338205022,1726385441037,-1000.0,0.00023287,2]
[338205024,1726385441047,-211.0,0.00023288,2]
[338205026,1726385441056,-300.0,0.000233,10]
[338205028,1726385441067,-1000.0,0.00023342,2]
[338205030,1726385441078,-1000.0,0.00023342,2]
[338205033,1726385441089,-1000.0,0.00023342,2]
[338205035,1726385441101,-1000.0,0.00023342,2]
[338205037,1726385441111,-155.0,0.0002336,8]
[338205039,1726385441123,-166.666666,0.00023456,2]
[338205041,1726385441132,-1152.0,0.00023528,2]
[338205043,1726385441142,-153.0,0.00023612,2]
[338205045,1726385441152,-153.0,0.00023612,2]
[338205047,1726385441162,-153.0,0.00023612,2]
[338205050,1726385441173,-153.0,0.00023612,2]
[338205052,1726385441184,-251.82,0.0002377,2]
[338205054,1726385441194,-166.666666,0.00023969,2]
[338205056,1726385441205,-192.84392936,0.00023973,2]
[338205058,1726385441217,-552.32655305,0.00023973,2]
[338205060,1726385441227,-153.0,0.00023996,2]
[338205062,1726385441238,-500.0,0.00024,2]
[338205065,1726385441248,-200.0,0.00024,2]
[338205066,1726385441258,-4945.31097265,0.00024,3]
[338205069,1726385441269,-1000.0,0.00024,120]
[338205071,1726385441278,-153.0,0.00024102,2]
[338205072,1726385441287,-1152.0,0.00024156,2]
[338205073,1726385441296,-211.0,0.00024164,2]
[338205074,1726385441307,-5000.0,0.00024287,2]
[338205075,1726385441317,-389.98742856,0.00024446,2]
[338205076,1726385441327,-166.666666,0.00024482,2]
[338205077,1726385441336,-6072.37310282,0.00024531,2]
[338205078,1726385441346,-1000.0,0.00024657,2]
[338205079,1726385441356,-3193.92442114,0.00024657,5]
[338205080,1726385441365,-380.0,0.00024658,2]
[338205081,1726385441375,-6220.3172354,0.00024658,2]
[338205082,1726385441384,-10000.0,0.00024658,7]
[338205083,1726385441394,-10000.0,0.00024658,7]
[338205084,1726385441404,-10000.0,0.00024658,7]
[338205085,1726385441414,-10000.0,0.00024658,7]
[338205086,1726385441425,-10000.0,0.00024658,7]
[338205087,1726385441435,-10000.0,0.00024658,7]
[338205088,1726385441445,-10000.0,0.00024658,7]
[338205089,1726385441456,-2861.16747183,0.00024658,7]
[338205268,1726385443268,-151.0,0.00021962,7]
[338205269,1726385443277,-151.0,0.0002198,7]
[338205284,1726385443474,-150.708476,0.00022,2]
[338205286,1726385443486,-150.0,0.00023,2]
[338205288,1726385443495,-150.0,0.00024,2]
[338205290,1726385443504,-7138.83252817,0.00024658,7]
[338205291,1726385443515,-10000.0,0.00024658,7]
[338205293,1726385443526,-151.0,0.00024658,7]
[338205295,1726385443536,-151.0,0.00024658,7]
[338205297,1726385443547,-153.303536,0.00024658,7]
[338205298,1726385443556,-153.303536,0.00024658,7]
[338205300,1726385443566,-153.303536,0.00024658,7]
[338205302,1726385443575,-153.303536,0.00024658,7]
[338205304,1726385443586,-153.303536,0.00024658,7]
[338205306,1726385443596,-153.303536,0.00024658,7]
[338205307,1726385443607,-151.0,0.00024658,7]
[338205309,1726385443616,-151.0,0.00024658,7]
[338205311,1726385443625,-10000.0,0.00024658,7]